[Event "WJCC U20 Open 2019"]
[Site "New Delhi"]
[Date "2019.10.19"]
[Round "6.28"]
[White "Sankalp Gupta"]
[Black "Nitish Belurkar"]
[Result "1-0"]
[ECO "C11"]
[WhiteElo "2369"]
[BlackElo "2311"]
[Annotator "NA RC"]
[PlyCount "89"]
[EventDate "2019.10.15"]
[EventType "swiss"]
[EventCountry "IND"]
[SourceTitle "playchess.com"]
[Source "ChessBase"]
[SourceQuality "1"]
[TimeControl "40/5400+30:1800+30"]

1. e4 {[%emt 0:03:01]} e6 {[%emt 0:00:00]} 2. d4 {[%emt 0:00:04]} d5 {[%emt 0:00:00]} 3. Nc3 {[%emt 0:00:03]} Nf6 {[%emt 0:00:00]} 4. e5 {[%emt 0:00:02]} Nfd7 {[%emt 0:00:00]} 5. f4 {[%emt 0:00:04]} c5 {[%emt 0:00:00]} 6. Nf3 {[%emt 0:00:04]} Nc6 {[%emt 0:00:00]} 7. Be3 {[%emt 0:00:02]} a6 {[%emt 0:00:06]} 8. Qd2 {[%emt 0:00:06]} Qb6 {[%emt 0:00:05]} 9. O-O-O {[%emt 0:00:58]} Qc7 {[%emt 0:00:06]} 10. dxc5 {[%emt 0:00:36]} Bxc5 {[%emt 0:00:08]} 11. Bxc5 {[%emt 0:10:04]} Nxc5 {[%emt 0:00:05]} 12. Qe3 {[%emt 0:00:07]} Ne7 {[%emt 0:01:57]} 13. g4 {[%emt 0:09:33]} b5 $11 {[%emt 0:08:03]} 14. Ne2 {[%emt 0:10:21]} Bb7 {[%emt 0:16:02]} 15. Ned4 {[%emt 0:01:40]} Nc8 {[%emt 0:02:07]} 16. f5 {[%emt 0:00:34]} Nb6 {[%emt 0:22:51]} 17. Qg5 {[%emt 0:24:47]} Rg8 {[%emt 0:06:24]} 18. Bd3 {[%emt 0:01:49]} h6 {[%emt 0:14:12]} 19. Qh4 {[%emt 0:00:35]} Qe7 {[%emt 0:01:51]} 20. fxe6 {[%emt 0:06:54]} fxe6 {[%emt 0:00:40]} 21. Bg6+ {[%emt 0:03:14]} Kd7 {[%emt 0:00:12]} 22. Rhf1 {[%emt 0:01:04]} Raf8 {[%emt 0:02:58]} 23. b4 {[%emt 0:03:39]} Nca4 {[%emt 0:02:04]} 24. Qxe7+ {[%emt 0:00:02]} Kxe7 {[%emt 0:00:01]} 25. Bh7 {[%emt 0:00:09]} g5 {[%emt 0:02:45]} 26. Bxg8 {[%emt 0:00:51]} Rxg8 {[%emt 0:00:01]} 27. Rde1 {[%emt 0:05:00]} Nc3 {[%emt 0:01:33]} 28. Nd2 {[%emt 0:05:42]} Nd7 {[%emt 0:00:58]} 29. a3 {[%emt 0:02:03]} Ne4 {[%emt 0:01:36]} 30. N4f3 {[%emt 0:00:16]} Nf8 {[%emt 0:03:21]} 31. Nxe4 {[%emt 0:00:22]} dxe4 {[%emt 0:00:09]} 32. Nd2 {[%emt 0:00:01]} Ng6 {[%emt 0:01:35]} 33. Nxe4 {[%emt 0:00:45]} Nf4 {[%emt 0:00:01]} 34. Nf6 {[%emt 0:00:46]} Rc8 {[%emt 0:00:05]} 35. Rd1 {[%emt 0:00:13]} Bd5 {[%emt 0:00:57]} 36. Kb2 {[%emt 0:00:42]} Rc4 {[%emt 0:00:08]} 37. Rf2 {[%emt 0:00:42]} a5 {[%emt 0:01:22]} 38. bxa5 {[%emt 0:01:02]} Ra4 {[%emt 0:00:01]} 39. Rdd2 {[%emt 0:01:33]} b4 {[%emt 0:00:33]} 40. axb4 {[%emt 0:00:34]} Rxb4+ {[%emt 0:00:01]} 41. Ka3 {[%emt 0:30:33]} Rb1 {[%emt 0:30:08]} 42. h4 {[%emt 0:03:55]} Rb5 {[%emt 0:00:13]} 43. hxg5 {[%emt 0:00:22]} hxg5 {[%emt 0:00:01]} 44. Rh2 {[%emt 0:00:34]} Rxa5+ {[%emt 0:00:11]} 45. Kb4 {[%emt 0:00:03]} 1-0

[Event "WJCC U20 Open 2019"]
[Site "New Delhi"]
[Date "2019.10.19"]
[Round "6.30"]
[White "Garidmagnai, Byambasuren"]
[Black "Lobanov, Sergei"]
[Result "1/2-1/2"]
[ECO "A06"]
[WhiteElo "2327"]
[BlackElo "2516"]
[Annotator "ChessBase"]
[PlyCount "140"]
[EventDate "2019.10.15"]
[EventType "swiss"]
[EventCountry "IND"]
[SourceTitle "playchess.com"]
[Source "ChessBase"]
[SourceQuality "1"]
[TimeControl "40/5400+30:1800+30"]

1. Nf3 {[%emt 0:00:00]} d5 {[%emt 0:00:00]} 2. b3 {[%emt 0:00:00]} c5 {[%emt 0:00:00]} 3. Bb2 {[%emt 0:00:00]} Nc6 {[%emt 0:00:00]} 4. e3 {[%emt 0:00:00]} Nf6 {[%emt 0:00:23]} 5. Be2 {[%emt 0:01:55]} e6 {[%emt 0:00:59]} 6. O-O {[%emt 0:00:11]} Bd6 {[%emt 0:01:31]} 7. c4 {[%emt 0:00:24]} d4 {[%emt 0:00:35]} 8. exd4 {[%emt 0:02:33]} cxd4 {[%emt 0:00:04]} 9. a3 {[%emt 0:00:21]} e5 {[%emt 0:01:40]} 10. d3 {[%emt 0:00:44]} O-O {[%emt 0:00:22]} 11. b4 {[%emt 0:00:48]} a5 {[%emt 0:06:27]} 12. c5 {[%emt 0:02:33]} Bc7 {[%emt 0:00:12]} 13. b5 {[%emt 0:01:36]} Ne7 {[%emt 0:00:04]} 14. Nbd2 {[%emt 0:00:36]} Ned5 {[%emt 0:01:10]} 15. Re1 {[%emt 0:00:54]} Nf4 {[%emt 0:12:55]} 16. Bf1 {[%emt 0:02:04]} Qd5 {[%emt 0:00:10]} 17. Qb3 {[%emt 0:12:14]} Qxb3 {[%emt 0:11:39]} 18. Nxb3 {[%emt 0:00:07]} a4 {[%emt 0:00:04]} 19. Nbd2 {[%emt 0:00:26]} Re8 {[%emt 0:01:20]} 20. Nc4 {[%emt 0:03:41]} Ng6 {[%emt 0:00:25]} 21. g3 {[%emt 0:02:01]} Bf5 {[%emt 0:08:11]} 22. b6 {[%emt 0:02:15]} Bb8 {[%emt 0:00:10]} 23. Rad1 {[%emt 0:00:46]} Bd7 {[%emt 0:06:19]} 24. Bg2 {[%emt 0:02:36]} Bc6 {[%emt 0:00:04]} 25. Re2 {[%emt 0:06:49]} Re6 {[%emt 0:18:15]} 26. Rde1 {[%emt 0:25:16]} Nd7 {[%emt 0:00:12]} 27. Nxd4 {[%emt 0:07:15]} exd4 {[%emt 0:00:47]} 28. Bxc6 {[%emt 0:04:09]} bxc6 {[%emt 0:04:33]} 29. Bxd4 {[%emt 0:00:46]} Ngf8 {[%emt 0:01:52]} 30. f4 {[%emt 0:03:57]} g6 {[%emt 0:00:51]} 31. Ne3 {[%emt 0:04:46]} h5 {[%emt 0:04:05]} 32. f5 {[%emt 0:01:15]} gxf5 {[%emt 0:02:36]} 33. Nxf5 {[%emt 0:01:53]} Kh7 {[%emt 0:00:04]} 34. Bf2 {[%emt 0:02:07]} Be5 {[%emt 0:05:12]} 35. d4 {[%emt 0:01:09]} Bf6 36. Nd6 {[%emt 0:02:20]} Rxd6 {[%emt 0:10:28]} 37. cxd6 {[%emt 0:00:07]} Nxb6 {[%emt 0:00:02]} 38. Rc2 {[%emt 0:00:20]} Rc8 {[%emt 0:02:53]} 39. Rb1 {[%emt 0:05:26]} Nfd7 {[%emt 0:00:49]} 40. Rb4 {[%emt 0:00:20]} Kg6 {[%emt 0:01:03]} 41. Kg2 {[%emt 0:07:45]} Kf5 {[%emt 0:00:22]} 42. Re2 {[%emt 0:02:03]} Bg7 {[%emt 0:08:05]} 43. Reb2 {[%emt 0:04:58]} c5 {[%emt 0:08:42]} 44. Rb5 Ke4 {[%emt 0:05:59]} 45. dxc5 {[%emt 0:13:54]} Bxb2 {[%emt 0:00:17]} 46. Rxb2 {[%emt 0:00:12]} Nc4 {[%emt 0:02:49]} 47. Rb7 {[%emt 0:00:38]} Nde5 {[%emt 0:00:25]} 48. Rb4 {[%emt 0:02:03]} Kd5 {[%emt 0:01:15]} 49. Rxa4 {[%emt 0:00:10]} Nc6 {[%emt 0:00:18]} 50. h3 {[%emt 0:03:08]} f5 {[%emt 0:02:07]} 51. Ra6 {[%emt 0:00:50]} Rb8 {[%emt 0:00:25]} 52. g4 {[%emt 0:00:25]} hxg4 {[%emt 0:00:08]} 53. hxg4 {[%emt 0:00:06]} Rg8 {[%emt 0:00:04]} 54. Kh3 {[%emt 0:02:11]} f4 {[%emt 0:00:41]} 55. Bh4 {[%emt 0:00:57]} N4e5 {[%emt 0:01:28]} 56. Ra4 {[%emt 0:00:33]} Rf8 {[%emt 0:04:42]} 57. Bg5 {[%emt 0:00:44]} f3 {[%emt 0:00:31]} 58. Rf4 {[%emt 0:00:06]} Rxf4 {[%emt 0:01:27]} 59. Bxf4 {[%emt 0:00:01]} Ke4 {[%emt 0:00:01]} 60. Kg3 {[%emt 0:01:23]} Nd3 {[%emt 0:00:05]} 61. Bg5 {[%emt 0:00:22]} Nxc5 {[%emt 0:00:10]} 62. a4 {[%emt 0:00:24]} Nd4 {[%emt 0:01:27]} 63. a5 {[%emt 0:00:22]} Ne2+ {[%emt 0:00:05]} 64. Kh2 {[%emt 0:00:18]} Nf4 {[%emt 0:01:08]} 65. Kg3 {[%emt 0:01:33]} Nfe6 {[%emt 0:00:28]} 66. a6 {[%emt 0:00:24]} Nxa6 {[%emt 0:00:25]} 67. d7 {[%emt 0:00:01]} Nb4 {[%emt 0:00:43]} 68. d8=Q Nxd8 {[%emt 0:00:01]} 69. Bxd8 {[%emt 0:00:14]} Ke3 {[%emt 0:00:17]} 70. Bb6+ {[%emt 0:00:05]} Ke4 {[%emt 0:00:18]} 1/2-1/2

[Event "WJCC U20 Open 2019"]
[Site "New Delhi"]
[Date "2019.10.19"]
[Round "6.31"]
[White "Wagh Suyog"]
[Black "Nigmatov, Ortik"]
[Result "0-1"]
[ECO "E94"]
[WhiteElo "2229"]
[BlackElo "2494"]
[Annotator "ChessBase"]
[PlyCount "102"]
[EventDate "2019.10.15"]
[EventType "swiss"]
[EventCountry "IND"]
[SourceTitle "playchess.com"]
[Source "ChessBase"]
[SourceQuality "1"]
[TimeControl "40/5400+30:1800+30"]

1. d4 Nf6 {[%emt 0:00:00]} 2. c4 {[%emt 0:00:00]} g6 {[%emt 0:00:00]} 3. Nc3 {[%emt 0:00:00]} Bg7 {[%emt 0:00:00]} 4. e4 {[%emt 0:00:00]} d6 {[%emt 0:00:00]} 5. Nf3 {[%emt 0:00:00]} O-O {[%emt 0:00:03]} 6. Be2 {[%emt 0:00:04]} e5 {[%emt 0:01:48]} 7. O-O {[%emt 0:01:21]} c6 {[%emt 0:01:15]} 8. dxe5 {[%emt 0:09:35]} dxe5 {[%emt 0:00:06]} 9. Nxe5 {[%emt 0:00:10]} Nxe4 {[%emt 0:11:01]} 10. Nxe4 {[%emt 0:00:20]} Bxe5 {[%emt 0:02:05]} 11. Bg5 {[%emt 0:00:01]} Qc7 {[%emt 0:25:33]} 12. f4 {[%emt 0:08:48]} Bxb2 {[%emt 0:05:02]} 13. Bf6 {[%emt 0:00:47]} Qb6+ {[%emt 0:18:21]} 14. c5 {[%emt 0:00:10]} Qb4 {[%emt 0:00:12]} 15. Bxb2 {[%emt 0:00:47]} Qxb2 {[%emt 0:03:54]} 16. Rb1 {[%emt 0:00:03]} Qg7 {[%emt 0:00:08]} 17. Qd6 {[%emt 0:00:01]} Nd7 {[%emt 0:02:28]} 18. Rfd1 {[%emt 0:13:32]} Re8 {[%emt 0:01:59]} 19. Bf3 {[%emt 0:02:52]} f5 {[%emt 0:03:37]} 20. Ng5 {[%emt 0:06:51]} Qc3 {[%emt 0:04:09]} 21. Rbc1 {[%emt 0:19:12]} Qe3+ {[%emt 0:02:02]} 22. Kf1 {[%emt 0:04:33]} Qe7 {[%emt 0:01:13]} 23. Re1 {[%emt 0:23:51]} Qxd6 {[%emt 0:01:48]} 24. cxd6 {[%emt 0:00:35]} Nf6 {[%emt 0:00:26]} 25. Rxe8+ {[%emt 0:06:36]} Nxe8 {[%emt 0:00:04]} 26. Rd1 {[%emt 0:00:10]} Bd7 {[%emt 0:00:06]} 27. Be2 {[%emt 0:00:04]} Nf6 {[%emt 0:01:51]} 28. Bc4+ {[%emt 0:01:27]} Kg7 {[%emt 0:00:05]} 29. Nf3 {[%emt 0:01:01]} b5 {[%emt 0:04:48]} 30. Bb3 {[%emt 0:00:04]} c5 {[%emt 0:00:09]} 31. Ne5 {[%emt 0:00:32]} c4 {[%emt 0:00:53]} 32. Bc2 {[%emt 0:00:01]} Rb8 {[%emt 0:02:51]} 33. Re1 {[%emt 0:01:05]} Rd8 {[%emt 0:00:05]} 34. Rb1 {[%emt 0:01:25]} Nd5 {[%emt 0:01:25]} 35. Kf2 {[%emt 0:00:18]} Nc3 {[%emt 0:02:48]} 36. Rc1 {[%emt 0:01:10]} Be6 {[%emt 0:00:33]} 37. Bxf5 {[%emt 0:00:14]} gxf5 {[%emt 0:00:34]} 38. Rxc3 {[%emt 0:00:11]} Rxd6 {[%emt 0:00:05]} 39. Ke2 {[%emt 0:00:17]} Rd4 {[%emt 0:02:02]} 40. Ra3 {[%emt 0:00:26]} Rxf4 {[%emt 0:02:20]} 41. Rxa7+ {[%emt 0:30:36]} Kf6 {[%emt 0:30:13]} 42. Nf3 {[%emt 0:00:00]} Re4+ {[%emt 0:00:00]} 43. Kd2 {[%emt 0:00:00]} b4 {[%emt 0:00:00]} 44. Ra6 {[%emt 0:00:00]} Ke7 {[%emt 0:00:00]} 45. Ra7+ {[%emt 0:00:00]} Kd6 {[%emt 0:00:00]} 46. Ra6+ {[%emt 0:00:00]} Kc5 {[%emt 0:00:00]} 47. Ng5 {[%emt 0:00:00]} c3+ {[%emt 0:00:00]} 48. Kd1 {[%emt 0:00:00]} Rd4+ {[%emt 0:00:00]} 49. Kc1 {[%emt 0:00:00]} Bd5 {[%emt 0:00:00]} 50. Ne6+ {[%emt 0:00:00]} Bxe6 {[%emt 0:00:00]} 51. Rxe6 {[%emt 0:00:00]} Rd2 {[%emt 0:00:00]} 0-1

[Event "WJCC U20 Open 2019"]
[Site "New Delhi"]
[Date "2019.10.19"]
[Round "6.32"]
[White "Muradli, Mahammad"]
[Black "Tifferet, Shaked"]
[Result "0-1"]
[ECO "D80"]
[WhiteElo "2459"]
[BlackElo "2224"]
[Annotator "ChessBase"]
[PlyCount "88"]
[EventDate "2019.10.15"]
[EventType "swiss"]
[EventCountry "IND"]
[SourceTitle "playchess.com"]
[Source "ChessBase"]
[SourceQuality "1"]
[TimeControl "40/5400+30:1800+30"]

1. d4 {[%emt 0:02:49]} Nf6 {[%emt 0:00:00]} 2. c4 {[%emt 0:00:01]} g6 {[%emt 0:00:00]} 3. Nc3 {[%emt 0:00:05]} d5 {[%emt 0:00:02]} 4. Bg5 {[%emt 0:00:02]} c5 {[%emt 0:00:13]} 5. Bxf6 {[%emt 0:09:08]} exf6 {[%emt 0:01:04]} 6. Nf3 {[%emt 0:17:04]} dxc4 {[%emt 0:00:59]} 7. d5 {[%emt 0:00:44]} Qa5 {[%emt 0:32:43]} 8. Nd2 {[%emt 0:04:11]} b5 {[%emt 0:01:06]} 9. g3 {[%emt 0:18:01]} b4 {[%emt 0:13:06]} 10. Nce4 {[%emt 0:01:12]} Qd8 {[%emt 0:01:06]} 11. Nxc4 {[%emt 0:02:25]} f5 {[%emt 0:00:38]} 12. Ned2 {[%emt 0:00:58]} Nd7 {[%emt 0:09:42]} 13. Bg2 {[%emt 0:00:47]} Nb6 {[%emt 0:00:26]} 14. a4 {[%emt 0:17:58]} Bg7 {[%emt 0:04:29]} 15. Qc2 {[%emt 0:07:22]} Ba6 {[%emt 0:02:56]} 16. O-O {[%emt 0:02:20]} O-O {[%emt 0:01:16]} 17. Rad1 {[%emt 0:05:32]} Qf6 {[%emt 0:06:32]} 18. a5 {[%emt 0:03:42]} Nd7 {[%emt 0:03:47]} 19. Rb1 {[%emt 0:00:34]} Bb5 {[%emt 0:00:35]} 20. Rfd1 {[%emt 0:00:20]} Rfe8 {[%emt 0:01:08]} 21. e3 {[%emt 0:01:03]} Rad8 {[%emt 0:01:29]} 22. Nf3 {[%emt 0:02:34]} Qa6 {[%emt 0:00:31]} 23. Nfd2 {[%emt 0:01:47]} h5 {[%emt 0:01:28]} 24. Rbc1 {[%emt 0:00:11]} h4 {[%emt 0:00:24]} 25. Nb3 {[%emt 0:01:05]} Rc8 {[%emt 0:01:26]} 26. Bf1 {[%emt 0:00:32]} Bh6 {[%emt 0:03:18]} 27. d6 {[%emt 0:00:31]} Qb7 {[%emt 0:01:03]} 28. Bg2 {[%emt 0:00:27]} Bc6 {[%emt 0:00:09]} 29. Bxc6 Qxc6 {[%emt 0:00:09]} 30. Qd3 {[%emt 0:00:40]} Qf3 {[%emt 0:02:40]} 31. Qf1 {[%emt 0:00:32]} Qh5 {[%emt 0:01:00]} 32. Qh3 {[%emt 0:00:49]} Bg5 {[%emt 0:05:20]} 33. a6 {[%emt 0:00:30]} Re6 {[%emt 0:00:22]} 34. Rd5 {[%emt 0:00:12]} Re4 {[%emt 0:02:35]} 35. Ncd2 {[%emt 0:00:41]} Rg4 {[%emt 0:01:52]} 36. Kf1 {[%emt 0:00:40]} c4 {[%emt 0:00:39]} 37. Rd4 {[%emt 0:00:26]} Rxd4 {[%emt 0:00:55]} 38. Nxd4 {[%emt 0:00:17]} c3 {[%emt 0:00:06]} 39. Nb1 {[%emt 0:00:46]} c2 {[%emt 0:00:37]} 40. Nxc2 {[%emt 0:00:31]} Rxc2 {[%emt 0:00:31]} 41. Rxc2 {[%emt 0:30:28]} Qd1+ {[%emt 0:30:08]} 42. Kg2 {[%emt 0:00:02]} Qxc2 {[%emt 0:00:07]} 43. gxh4 {[%emt 0:00:03]} Qe4+ {[%emt 0:00:00]} 44. Qf3 {[%emt 0:00:00]} Bf6 {[%emt 0:00:00]} 0-1

[Event "WJCC U20 Open 2019"]
[Site "New Delhi"]
[Date "2019.10.19"]
[Round "6.33"]
[White "Di Benedetto, Edoardo"]
[Black "De Silva, L M S T"]
[Result "1-0"]
[ECO "E48"]
[WhiteElo "2401"]
[BlackElo "1879"]
[Annotator "NA"]
[PlyCount "149"]
[EventDate "2019.10.15"]
[EventType "swiss"]
[EventCountry "IND"]
[SourceTitle "playchess.com"]
[Source "ChessBase"]
[SourceQuality "1"]
[TimeControl "40/5400+30:1800+30"]

1. d4 {[%emt 0:00:00]} Nf6 {[%emt 0:00:00]} 2. c4 {[%emt 0:00:00]} e6 {[%emt 0:00:00]} 3. Nc3 {[%emt 0:00:00]} Bb4 {[%emt 0:00:00]} 4. e3 {[%emt 0:00:00]} O-O {[%emt 0:00:00]} 5. Bd3 d5 {[%emt 0:01:04]} 6. cxd5 {[%emt 0:00:03]} exd5 {[%emt 0:00:42]} 7. Nge2 {[%emt 0:00:14]} b6 {[%emt 0:02:08]} 8. O-O {[%emt 0:00:38]} Bb7 {[%emt 0:00:23]} 9. f3 {[%emt 0:01:53]} c5 {[%emt 0:02:14]} 10. a3 {[%emt 0:00:59]} Bxc3 {[%emt 0:01:32]} 11. bxc3 {[%emt 0:00:51]} Nc6 {[%emt 0:01:11]} 12. g4 {[%emt 0:02:02]} h6 {[%emt 0:02:56]} 13. Rf2 {[%emt 0:00:29]} Rc8 {[%emt 0:02:55]} 14. Rg2 {[%emt 0:02:10]} Ne8 $11 {[%emt 0:04:39]} 15. Kh1 {[%emt 0:32:15]} Na5 {[%emt 0:03:09]} 16. Rb1 {[%emt 0:00:48]} cxd4 {[%emt 0:02:06]} 17. exd4 {[%emt 0:01:44]} Nc4 {[%emt 0:06:35]} 18. g5 {[%emt 0:04:17]} hxg5 {[%emt 0:01:46]} 19. Bxg5 {[%emt 0:06:32]} f6 {[%emt 0:01:55]} 20. Bf4 {[%emt 0:01:12]} Qe7 {[%emt 0:16:24]} 21. Ng3 {[%emt 0:06:53]} Ncd6 {[%emt 0:12:12]} 22. Qc2 {[%emt 0:11:53]} Bc6 {[%emt 0:09:29]} 23. Rbg1 {[%emt 0:02:40]} Rc7 {[%emt 0:07:57]} 24. Nf5 {[%emt 0:04:09]} Nxf5 {[%emt 0:01:18]} 25. Bxf5 {[%emt 0:00:48]} Rb7 {[%emt 0:06:35]} 26. Bc8 {[%emt 0:01:49]} Qxa3 {[%emt 0:03:28]} 27. Be6+ {[%emt 0:00:32]} Rff7 {[%emt 0:01:40]} 28. Bh6 {[%emt 0:03:05]} Kf8 {[%emt 0:03:54]} 29. Bxf7 {[%emt 0:01:09]} Rxf7 {[%emt 0:00:12]} 30. Bc1 {[%emt 0:00:12]} Qa5 {[%emt 0:00:44]} 31. Qb3 {[%emt 0:03:25]} Kg8 {[%emt 0:00:16]} 32. Re1 {[%emt 0:04:26]} Qb5 {[%emt 0:02:36]} 33. Qxb5 {[%emt 0:02:30]} Bxb5 {[%emt 0:00:01]} 34. Bf4 {[%emt 0:02:22]} Kf8 {[%emt 0:00:44]} 35. Ra2 {[%emt 0:00:22]} a6 {[%emt 0:01:29]} 36. Kg2 {[%emt 0:02:02]} Re7 {[%emt 0:01:19]} 37. Raa1 {[%emt 0:01:04]} Bc4 {[%emt 0:01:15]} 38. Rab1 {[%emt 0:02:08]} Rxe1 {[%emt 0:00:25]} 39. Rxe1 {[%emt 0:00:06]} Kf7 {[%emt 0:00:50]} 40. Rb1 {[%emt 0:00:12]} Bb5 {[%emt 0:00:23]} 41. Bb8 {[%emt 0:30:43]} Ke6 {[%emt 0:31:31]} 42. Ba7 {[%emt 0:00:46]} Nd6 {[%emt 0:00:00]} 43. Bxb6 {[%emt 0:00:00]} Nb7 {[%emt 0:00:00]} 44. Kg3 {[%emt 0:00:00]} Kd7 {[%emt 0:00:00]} 45. h4 {[%emt 0:00:00]} Kc6 {[%emt 0:00:00]} 46. Ba7 {[%emt 0:00:00]} a5 {[%emt 0:00:00]} 47. Kf4 {[%emt 0:00:00]} g6 {[%emt 0:00:00]} 48. Rg1 {[%emt 0:00:00]} Bd3 {[%emt 0:00:00]} 49. Ke3 {[%emt 0:00:00]} Bf5 {[%emt 0:00:00]} 50. Ra1 {[%emt 0:00:00]} Kb5 {[%emt 0:00:00]} 51. Bc5 {[%emt 0:00:00]} a4 {[%emt 0:00:00]} 52. Be7 {[%emt 0:00:00]} Na5 {[%emt 0:00:00]} 53. Bxf6 {[%emt 0:00:00]} Nb3 {[%emt 0:00:00]} 54. Ra3 {[%emt 0:00:00]} Bd7 {[%emt 0:00:00]} 55. Be7 {[%emt 0:00:00]} Kc4 {[%emt 0:00:00]} 56. Kf4 {[%emt 0:03:48]} Kxc3 {[%emt 0:00:00]} 57. Kg5 {[%emt 0:00:26]} Be8 {[%emt 0:00:00]} 58. f4 {[%emt 0:00:19]} Kxd4 {[%emt 0:03:10]} 59. f5 {[%emt 0:00:03]} gxf5 {[%emt 0:00:47]} 60. h5 {[%emt 0:00:08]} Bxh5 {[%emt 0:03:40]} 61. Rxa4+ {[%emt 0:00:27]} Kc3 {[%emt 0:01:40]} 62. Bf6+ {[%emt 0:00:39]} Kd3 {[%emt 0:01:01]} 63. Kxh5 {[%emt 0:00:05]} d4 {[%emt 0:00:39]} 64. Kg5 {[%emt 0:00:10]} Kc3 {[%emt 0:00:07]} 65. Kxf5 {[%emt 0:00:44]} Kd3 {[%emt 0:00:22]} 66. Kf4 {[%emt 0:00:21]} Kc3 {[%emt 0:00:06]} 67. Kg3 {[%emt 0:00:48]} Kd3 {[%emt 0:00:19]} 68. Bh8 {[%emt 0:00:42]} Kc3 {[%emt 0:00:08]} 69. Bg7 {[%emt 0:00:30]} Kd3 {[%emt 0:00:12]} 70. Kf4 {[%emt 0:00:06]} Kc3 {[%emt 0:00:06]} 71. Kf5 {[%emt 0:00:04]} Kd3 {[%emt 0:00:11]} 72. Kg6 {[%emt 0:00:06]} Kc3 {[%emt 0:00:07]} 73. Kf7 {[%emt 0:00:10]} Kd3 {[%emt 0:00:06]} 74. Ke7 {[%emt 0:00:07]} Kc3 {[%emt 0:00:04]} 75. Kd6 {[%emt 0:00:06]} 1-0

[Event "WJCC U20 Open 2019"]
[Site "New Delhi"]
[Date "2019.10.19"]
[Round "6.35"]
[White "Rakesh Kumar Jena"]
[Black "Vatsal Singhania"]
[Result "1/2-1/2"]
[ECO "D02"]
[WhiteElo "2355"]
[BlackElo "2157"]
[Annotator "NA"]
[PlyCount "67"]
[EventDate "2019.10.15"]
[EventType "swiss"]
[EventCountry "IND"]
[SourceTitle "playchess.com"]
[Source "ChessBase"]
[SourceQuality "1"]
[TimeControl "40/5400+30:1800+30"]

1. d4 Nf6 2. Nf3 d5 3. Bf4 c5 4. e3 Nc6 5. Nbd2 Qb6 6. dxc5 Qxb2 7. Rb1 Qc3 8. Bb5 e6 9. O-O Be7 10. Bxc6+ bxc6 $11 11. Ne5 Ba6 12. Nxc6 Qxc5 13. Nxe7 Qxe7 14. c4 O-O 15. Qa4 Bxc4 16. Nxc4 dxc4 17. Qxc4 Rac8 18. Qa6 Rfd8 19. Rb7 Qc5 20. Qxa7 Qxa7 21. Rxa7 h5 22. Bg5 Rc2 23. a4 Ra2 24. g3 Rc8 25. Bxf6 gxf6 26. Kg2 Rc4 27. a5 Rca4 28. Kh3 Rxa5 29. Rxa5 Rxa5 30. Kh4 Kg7 31. g4 Rg5 32. gxh5 Kh6 33. f4 Rg2 34. Kh3 1/2-1/2

[Event "WJCC U20 Open 2019"]
[Site "New Delhi"]
[Date "2019.10.19"]
[Round "6.36"]
[White "Cansun, Can Alp"]
[Black "Eugene, Floryan"]
[Result "0-1"]
[ECO "C70"]
[WhiteElo "2199"]
[BlackElo "2346"]
[Annotator "NA"]
[PlyCount "98"]
[EventDate "2019.10.15"]
[EventType "swiss"]
[EventCountry "IND"]
[SourceTitle "playchess.com"]
[Source "ChessBase"]
[SourceQuality "1"]
[TimeControl "40/5400+30:1800+30"]

1. e4 {[%emt 0:00:00]} e5 {[%emt 0:00:00]} 2. Nf3 {[%emt 0:00:00]} Nc6 {[%emt 0:00:26]} 3. Bb5 {[%emt 0:00:00]} a6 {[%emt 0:00:49]} 4. Ba4 {[%emt 0:00:00]} Nge7 {[%emt 0:00:32]} 5. c3 {[%emt 0:01:12]} g6 {[%emt 0:00:19]} 6. d4 {[%emt 0:00:14]} exd4 {[%emt 0:01:21]} 7. cxd4 {[%emt 0:03:30]} Bg7 {[%emt 0:01:14]} 8. O-O {[%emt 0:00:49]} O-O {[%emt 0:00:13]} 9. d5 {[%emt 0:00:39]} Na5 {[%emt 0:00:14]} 10. Nc3 {[%emt 0:02:15]} b5 {[%emt 0:00:36]} 11. Bc2 {[%emt 0:00:07]} d6 {[%emt 0:00:09]} 12. Rb1 {[%emt 0:02:32]} b4 {[%emt 0:07:45]} 13. Ne2 {[%emt 0:01:50]} Bg4 {[%emt 0:00:17]} 14. Nf4 {[%emt 0:09:15]} c5 {[%emt 0:10:09]} 15. b3 {[%emt 0:10:41]} Nc8 {[%emt 0:06:36]} 16. Bd3 {[%emt 0:02:15]} Re8 {[%emt 0:05:50]} 17. h3 {[%emt 0:02:33]} Bd7 {[%emt 0:00:39]} 18. Qc2 {[%emt 0:04:58]} Na7 {[%emt 0:03:40]} 19. Bb2 {[%emt 0:02:16]} Bb5 {[%emt 0:00:55]} 20. Rfe1 {[%emt 0:11:28]} Bxd3 {[%emt 0:17:57]} 21. Nxd3 {[%emt 0:01:10]} Nb5 {[%emt 0:00:25]} 22. e5 {[%emt 0:06:57]} Rc8 {[%emt 0:09:41]} 23. e6 {[%emt 0:06:36]} fxe6 {[%emt 0:01:59]} 24. dxe6 {[%emt 0:00:34]} Bxb2 {[%emt 0:05:35]} 25. Qxb2 {[%emt 0:00:51]} Nc3 {[%emt 0:00:07]} 26. Nf4 {[%emt 0:17:17]} Qf6 {[%emt 0:04:50]} 27. Qd2 {[%emt 0:01:11]} Nxb1 {[%emt 0:02:21]} 28. Rxb1 {[%emt 0:00:11]} Nc6 {[%emt 0:02:05]} 29. h4 {[%emt 0:07:21]} Rf8 {[%emt 0:02:42]} 30. g3 {[%emt 0:02:36]} Ne5 {[%emt 0:00:30]} 31. Qd5 {[%emt 0:00:36]} Nxf3+ {[%emt 0:00:47]} 32. Qxf3 {[%emt 0:00:16]} Qxe6 {[%emt 0:00:10]} 33. Rd1 {[%emt 0:00:18]} Rce8 {[%emt 0:02:20]} 34. Qd3 {[%emt 0:00:52]} Qg4 {[%emt 0:01:09]} 35. Qd5+ {[%emt 0:01:15]} Kh8 {[%emt 0:00:12]} 36. Kf1 {[%emt 0:01:13]} Rf6 {[%emt 0:00:45]} 37. Rd3 {[%emt 0:01:39]} Qf5 {[%emt 0:03:25]} 38. Qxf5 {[%emt 0:01:00]} gxf5 {[%emt 0:00:13]} 39. Nd5 {[%emt 0:00:26]} Rfe6 {[%emt 0:00:16]} 40. Ne3 {[%emt 0:00:01]} f4 {[%emt 0:02:49]} 41. gxf4 {[%emt 0:30:06]} Re4 {[%emt 0:30:21]} 42. f5 {[%emt 0:00:28]} Rd4 {[%emt 0:02:48]} 43. Ke2 {[%emt 0:00:00]} Ree4 {[%emt 0:00:00]} 44. Kd2 {[%emt 0:00:00]} Rxh4 {[%emt 0:00:00]} 45. Nc4 {[%emt 0:00:00]} Kg7 {[%emt 0:00:00]} 46. Rxd4 {[%emt 0:00:00]} Rxd4+ {[%emt 0:00:00]} 47. Ke3 {[%emt 0:00:00]} Rxc4 {[%emt 0:00:00]} 48. bxc4 {[%emt 0:00:00]} Kf6 {[%emt 0:00:00]} 49. Kf4 {[%emt 0:00:00]} a5 {[%emt 0:00:00]} 0-1